[Event "*** Titled Tuesday 3|2 Blitz"]
[Site "Chess.com"]
[Date "2016.10.04"]
[Round "8"]
[White "bugsbunny444"]
[Black "Schwarzschidl"]
[Result "0-1"]
[WhiteElo "2334"]
[BlackElo "2344"]
[TimeControl "180+2"]
[EndTime "18:50:06 PDT"]
[Termination "Schwarzschidl won by resignation"]

1. Nf3 {[%clk 0:03:02]} 1... d5 {[%clk 0:02:59.9]} 2. c4 {[%clk 0:03:03.4]} 2...
e6 {[%clk 0:03:00.3]} 3. g3 {[%clk 0:03:04.9]} 3... Nf6 {[%clk 0:03:00.4]} 4.
Bg2 {[%clk 0:03:06.3]} 4... Be7 {[%clk 0:03:01.6]} 5. O-O {[%clk 0:03:07.9]}
5... O-O {[%clk 0:03:03.2]} 6. b3 {[%clk 0:03:09.5]} 6... c6 {[%clk 0:03:02.2]}
7. d4 {[%clk 0:03:09.3]} 7... Nbd7 {[%clk 0:03:01.5]} 8. Qc2 {[%clk 0:03:09.2]}
8... Ne4 {[%clk 0:03:01.7]} 9. Nfd2 {[%clk 0:03:05.1]} 9... f5 {[%clk
0:03:00.7]} 10. f3 {[%clk 0:02:50.4]} 10... Nd6 {[%clk 0:02:42.9]} 11. e4 {[%clk
0:02:49.1]} 11... b6 {[%clk 0:01:58.1]} 12. Nc3 {[%clk 0:02:41.6]} 12... Ba6
{[%clk 0:01:49.6]} 13. e5 {[%clk 0:02:32.6]} 13... Nf7 {[%clk 0:01:45.9]} 14.
Rd1 {[%clk 0:02:23.2]} 14... Rc8 {[%clk 0:01:42.4]} 15. f4 {[%clk 0:02:19.5]}
15... c5 {[%clk 0:01:16.3]} 16. dxc5 {[%clk 0:01:59.4]} 16... d4 {[%clk
0:01:06.3]} 17. c6 {[%clk 0:01:01.8]} 17... Ndxe5 {[%clk 0:00:44.6]} 18. fxe5
{[%clk 0:00:53.2]} 18... dxc3 {[%clk 0:00:44.6]} 19. Nb1 {[%clk 0:00:32.6]}
19... Bc5+ {[%clk 0:00:40.2]} 20. Kh1 {[%clk 0:00:33]} 20... Qc7 {[%clk
0:00:36.9]} 21. Nxc3 {[%clk 0:00:31.7]} 21... Nxe5 {[%clk 0:00:34]} 22. Bf4
{[%clk 0:00:20.4]} 22... g5 {[%clk 0:00:25.1]} 23. Nb5 {[%clk 0:00:14]} 23...
Qg7 {[%clk 0:00:24.8]} 24. Bxe5 {[%clk 0:00:11.4]} 24... Qxe5 {[%clk 0:00:26]}
25. Re1 {[%clk 0:00:10.3]} 25... Qg7 {[%clk 0:00:26]} 26. Rad1 {[%clk
0:00:09.5]} 26... Rce8 {[%clk 0:00:26.7]} 27. Rd7 {[%clk 0:00:07.9]} 27... Re7
{[%clk 0:00:27.7]} 28. Qd3 {[%clk 0:00:06.6]} 28... Bc8 {[%clk 0:00:27.1]} 29.
Rxe7 {[%clk 0:00:04.9]} 29... Qxe7 {[%clk 0:00:29]} 30. Rd1 {[%clk 0:00:04.7]}
30... a6 {[%clk 0:00:27.8]} 31. Nc3 {[%clk 0:00:04]} 31... f4 {[%clk 0:00:28]}
32. Na4 {[%clk 0:00:03.7]} 32... Be3 {[%clk 0:00:23.9]} 33. Qd6 {[%clk
0:00:03.6]} 33... Qxd6 {[%clk 0:00:21.5]} 34. Rxd6 {[%clk 0:00:05.5]} 34... f3
{[%clk 0:00:23.2]} 35. Bf1 {[%clk 0:00:06.8]} 35... g4 {[%clk 0:00:24.3]} 36.
Rd3 {[%clk 0:00:04.8]} 36... Bc5 {[%clk 0:00:24.1]} 37. Nxc5 {[%clk 0:00:05.3]}
37... bxc5 {[%clk 0:00:26]} 38. Kg1 {[%clk 0:00:06]} 38... Kf7 {[%clk
0:00:27.5]} 39. Kf2 {[%clk 0:00:06.8]} 39... Ke7 {[%clk 0:00:29.1]} 40. h3
{[%clk 0:00:05.1]} 40... h5 {[%clk 0:00:29.6]} 41. Re3 {[%clk 0:00:03.4]} 41...
Rf6 {[%clk 0:00:30.3]} 42. Re5 {[%clk 0:00:03.8]} 42... Kd6 {[%clk 0:00:30.9]}
43. Rxh5 {[%clk 0:00:04.6]} 43... e5 {[%clk 0:00:31.8]} 44. hxg4 {[%clk
0:00:02.5]} 44... Bxg4 {[%clk 0:00:33.7]} 45. Rh4 {[%clk 0:00:03.9]} 45... Be6
{[%clk 0:00:33.3]} 46. Bh3 {[%clk 0:00:03.5]} 46... Bxh3 {[%clk 0:00:31.1]} 47.
Rxh3 {[%clk 0:00:05.4]} 47... e4 {[%clk 0:00:32.8]} 48. Rh4 {[%clk 0:00:05.3]}
48... e3+ {[%clk 0:00:33.1]} 49. Kxe3 {[%clk 0:00:06.2]} 49... f2 {[%clk
0:00:35]} 50. Rh1 {[%clk 0:00:02.4]} 50... f1=Q {[%clk 0:00:36.1]} 0-1

[Event "*** Titled Tuesday 3|2 Blitz"]
[Site "Chess.com"]
[Date "2016.10.04"]
[Round "8"]
[White "jlandaw"]
[Black "hardingstoptry"]
[Result "1-0"]
[WhiteElo "2335"]
[BlackElo "2473"]
[TimeControl "180+2"]
[EndTime "18:51:03 PDT"]
[Termination "jlandaw won by checkmate"]

1. e4 {[%clk 0:03:02]} 1... e6 {[%clk 0:03:01.2]} 2. d4 {[%clk 0:03:00.8]} 2...
d5 {[%clk 0:03:03.1]} 3. e5 {[%clk 0:03:02.3]} 3... c5 {[%clk 0:03:02.3]} 4. c3
{[%clk 0:03:03.9]} 4... Nc6 {[%clk 0:03:03.1]} 5. Nf3 {[%clk 0:03:05.5]} 5...
Qb6 {[%clk 0:03:03.5]} 6. Bd3 {[%clk 0:03:07.1]} 6... cxd4 {[%clk 0:03:00.3]} 7.
cxd4 {[%clk 0:03:08.3]} 7... Nge7 {[%clk 0:02:56.6]} 8. Nc3 {[%clk 0:02:54.9]}
8... Bd7 {[%clk 0:02:55]} 9. O-O {[%clk 0:02:40.3]} 9... Nxd4 {[%clk 0:02:49.2]}
10. Nxd4 {[%clk 0:02:41.2]} 10... Qxd4 {[%clk 0:02:51.1]} 11. Nb5 {[%clk
0:02:39.1]} 11... Qxe5 {[%clk 0:02:44.9]} 12. Re1 {[%clk 0:02:36.9]} 12... Qb8
{[%clk 0:02:41.6]} 13. Qf3 {[%clk 0:02:37.9]} 13... Bxb5 {[%clk 0:02:38.5]} 14.
Bxb5+ {[%clk 0:02:38.5]} 14... Nc6 {[%clk 0:02:40.4]} 15. Qxd5 {[%clk
0:02:37.5]} 15... Qc8 {[%clk 0:02:41]} 16. Qg5 {[%clk 0:02:05.9]} 16... a6
{[%clk 0:02:31.6]} 17. Ba4 {[%clk 0:02:01.4]} 17... b5 {[%clk 0:02:29.8]} 18.
Bb3 {[%clk 0:02:01.6]} 18... Nd4 {[%clk 0:02:30.4]} 19. Bd5 {[%clk 0:01:50.7]}
19... Nc2 {[%clk 0:02:13.6]} 20. Bf4 {[%clk 0:00:42.4]} 20... Nxa1 {[%clk
0:01:56.1]} 21. Rxa1 {[%clk 0:00:28.9]} 21... g6 {[%clk 0:01:49.8]} 22. Rc1
{[%clk 0:00:23.3]} 22... Qxc1+ {[%clk 0:00:47.1]} 23. Bxc1 {[%clk 0:00:25.2]}
23... Rc8 {[%clk 0:00:48.9]} 24. Bb7 {[%clk 0:00:19.8]} 24... Rc5 {[%clk
0:00:43.7]} 25. Qe3 {[%clk 0:00:20.9]} 25... Be7 {[%clk 0:00:43.5]} 26. g3
{[%clk 0:00:15.1]} 26... O-O {[%clk 0:00:42.5]} 27. Bd2 {[%clk 0:00:15.9]} 27...
Rb8 {[%clk 0:00:41.3]} 28. Bb4 {[%clk 0:00:12.4]} 28... Rc7 {[%clk 0:00:39.2]}
29. Bxe7 {[%clk 0:00:12.2]} 29... Rxe7 {[%clk 0:00:40.2]} 30. Bxa6 {[%clk
0:00:12.1]} 30... b4 {[%clk 0:00:39.4]} 31. Bc4 {[%clk 0:00:12.8]} 31... Rd7
{[%clk 0:00:38.2]} 32. Kg2 {[%clk 0:00:13.6]} 32... Rdd8 {[%clk 0:00:37.3]} 33.
h4 {[%clk 0:00:14.5]} 33... h5 {[%clk 0:00:35.2]} 34. Qe5 {[%clk 0:00:10.5]}
34... Rb6 {[%clk 0:00:34.7]} 35. Qf6 {[%clk 0:00:08.4]} 35... Rc8 {[%clk
0:00:34.1]} 36. Bd3 {[%clk 0:00:07.7]} 36... Rbc6 {[%clk 0:00:33.4]} 37. Be4
{[%clk 0:00:07.5]} 37... Rc5 {[%clk 0:00:31.6]} 38. a4 {[%clk 0:00:05.1]} 38...
bxa3 {[%clk 0:00:30.4]} 39. bxa3 {[%clk 0:00:07]} 39... R8c7 {[%clk 0:00:31.9]}
40. a4 {[%clk 0:00:08.1]} 40... Kh7 {[%clk 0:00:28.2]} 41. Qd8 {[%clk
0:00:07.1]} 41... Ra7 {[%clk 0:00:27.1]} 42. Qb6 {[%clk 0:00:06.7]} 42... Rca5
{[%clk 0:00:26.3]} 43. Bc6 {[%clk 0:00:08]} 43... R5a6 {[%clk 0:00:25.9]} 44.
Qc5 {[%clk 0:00:08.3]} 44... Rc7 {[%clk 0:00:24.4]} 45. Qb5 {[%clk 0:00:07.8]}
45... Raxc6 {[%clk 0:00:23.7]} 46. a5 {[%clk 0:00:09.1]} 46... Rd6 {[%clk
0:00:22.5]} 47. Qb4 {[%clk 0:00:08]} 47... Ra6 {[%clk 0:00:22]} 48. Qb5 {[%clk
0:00:09]} 48... Rca7 {[%clk 0:00:20.2]} 49. g4 {[%clk 0:00:09.2]} 49... hxg4
{[%clk 0:00:18.2]} 50. Qg5 {[%clk 0:00:09.7]} 50... Rxa5 {[%clk 0:00:15.8]} 51.
Qxg4 {[%clk 0:00:11.2]} 51... Ra4 {[%clk 0:00:14.6]} 52. Qg5 {[%clk 0:00:12.1]}
52... R7a5 {[%clk 0:00:13.6]} 53. Qe7 {[%clk 0:00:13.4]} 53... Rf5 {[%clk
0:00:10]} 54. Kg3 {[%clk 0:00:10.9]} 54... Raf4 {[%clk 0:00:06.5]} 55. Qb7
{[%clk 0:00:06.8]} 55... Rxf2 {[%clk 0:00:05.2]} 56. Kg4 {[%clk 0:00:08.4]}
56... R5f4+ {[%clk 0:00:03.8]} 57. Kg3 {[%clk 0:00:10]} 57... R2f3+ {[%clk
0:00:05.2]} 58. Kg2 {[%clk 0:00:11]} 58... Rf2+ {[%clk 0:00:06]} 59. Kg3 {[%clk
0:00:12.5]} 59... Kh6 {[%clk 0:00:07.9]} 60. Qb8 {[%clk 0:00:12.5]} 60... R2f3+
{[%clk 0:00:09.1]} 61. Kg2 {[%clk 0:00:13.9]} 61... Rf2+ {[%clk 0:00:10.1]} 62.
Kg3 {[%clk 0:00:15.4]} 62... R4f3+ {[%clk 0:00:12]} 63. Kg4 {[%clk 0:00:14.8]}
63... Rf5 {[%clk 0:00:13.2]} 64. Qh8# {[%clk 0:00:14.8]} 1-0

[Event "*** Titled Tuesday 3|2 Blitz"]
[Site "Chess.com"]
[Date "2016.10.04"]
[Round "8"]
[White "gmjoey1"]
[Black "Mornar1951"]
[Result "0-1"]
[WhiteElo "2483"]
[BlackElo "2590"]
[TimeControl "180+2"]
[EndTime "18:51:46 PDT"]
[Termination "Mornar1951 won by resignation"]

1. e4 {[%clk 0:03:01.9]} 1... d5 {[%clk 0:03:00.3]} 2. exd5 {[%clk 0:03:02.1]}
2... Nf6 {[%clk 0:03:01.9]} 3. d4 {[%clk 0:02:59.1]} 3... Bg4 {[%clk 0:03:01.9]}
4. Be2 {[%clk 0:02:59.6]} 4... Bxe2 {[%clk 0:03:03]} 5. Qxe2 {[%clk 0:02:57.8]}
5... Qxd5 {[%clk 0:03:04.6]} 6. Nf3 {[%clk 0:02:59.4]} 6... e6 {[%clk
0:03:06.2]} 7. O-O {[%clk 0:02:58.4]} 7... Nc6 {[%clk 0:03:06.8]} 8. Rd1 {[%clk
0:02:57.1]} 8... O-O-O {[%clk 0:03:07.1]} 9. Be3 {[%clk 0:02:54.6]} 9... Qh5
{[%clk 0:03:04.5]} 10. Nbd2 {[%clk 0:02:34.9]} 10... Bd6 {[%clk 0:03:02.1]} 11.
Nf1 {[%clk 0:02:34.9]} 11... Rhg8 {[%clk 0:02:54.1]} 12. c4 {[%clk 0:02:22]}
12... g5 {[%clk 0:02:54.9]} 13. c5 {[%clk 0:02:22.2]} 13... Bf4 {[%clk
0:02:55.9]} 14. b4 {[%clk 0:02:01.9]} 14... g4 {[%clk 0:02:39.1]} 15. Ne1 {[%clk
0:01:42.2]} 15... g3 {[%clk 0:02:25.3]} 16. Qxh5 {[%clk 0:01:26.8]} 16... gxf2+
{[%clk 0:02:26.3]} 17. Bxf2 {[%clk 0:01:24.4]} 17... Nxh5 {[%clk 0:02:28.2]} 18.
b5 {[%clk 0:01:23.4]} 18... Nb4 {[%clk 0:02:29.3]} 19. Nd3 {[%clk 0:01:11.8]}
19... Nxd3 {[%clk 0:02:27]} 20. Rxd3 {[%clk 0:01:12]} 20... Rd5 {[%clk
0:02:15.7]} 21. Rf3 {[%clk 0:01:11.4]} 21... f6 {[%clk 0:02:09.5]} 22. Re1
{[%clk 0:01:10.4]} 22... e5 {[%clk 0:02:09.3]} 23. dxe5 {[%clk 0:00:52.6]} 23...
Bxe5 {[%clk 0:02:10.5]} 24. g3 {[%clk 0:00:47.8]} 24... Nf4 {[%clk 0:02:07.2]}
25. Be3 {[%clk 0:00:39.5]} 25... Nh3+ {[%clk 0:01:58.6]} 26. Kg2 {[%clk
0:00:39.4]} 26... Ng5 {[%clk 0:01:59.5]} 27. Bxg5 {[%clk 0:00:40.1]} 27... Rxg5
{[%clk 0:02:01.1]} 28. Rc1 {[%clk 0:00:40.3]} 28... Bd4 {[%clk 0:01:56.8]} 29.
h4 {[%clk 0:00:38]} 29... Rgf5 {[%clk 0:01:48.1]} 30. c6 {[%clk 0:00:30.9]}
30... Rxf3 {[%clk 0:01:43.6]} 31. Kxf3 {[%clk 0:00:31.2]} 31... Rxb5 {[%clk
0:01:44.8]} 32. Ke4 {[%clk 0:00:31.4]} 32... Be5 {[%clk 0:01:38.9]} 33. g4
{[%clk 0:00:32.8]} 33... Rb4+ {[%clk 0:01:30.8]} 34. Kf5 {[%clk 0:00:31.4]}
34... Rf4+ {[%clk 0:01:31.2]} 35. Ke6 {[%clk 0:00:32.7]} 35... Rxg4 {[%clk
0:01:31.8]} 36. Ne3 {[%clk 0:00:33.2]} 36... Re4 {[%clk 0:01:30.5]} 37. cxb7+
{[%clk 0:00:32]} 37... Kb8 {[%clk 0:01:28.4]} 38. Nc4 {[%clk 0:00:21.3]} 38...
Kxb7 {[%clk 0:01:03.7]} 39. Kd5 {[%clk 0:00:18.9]} 39... Rxh4 {[%clk 0:00:58]}
40. Na5+ {[%clk 0:00:16.7]} 40... Ka6 {[%clk 0:00:57]} 41. Nc6 {[%clk
0:00:16.7]} 41... Bd6 {[%clk 0:00:55.7]} 42. Rb1 {[%clk 0:00:16.4]} 42... Rh5+
{[%clk 0:00:53.3]} 43. Ke6 {[%clk 0:00:17.8]} 43... Rb5 {[%clk 0:00:51.4]} 44.
Rh1 {[%clk 0:00:14]} 44... Rb6 {[%clk 0:00:51.1]} 45. Kd7 {[%clk 0:00:13.1]}
45... f5 {[%clk 0:00:51.8]} 46. Rxh7 {[%clk 0:00:12.9]} 46... f4 {[%clk
0:00:53.1]} 47. Rh5 {[%clk 0:00:12.5]} 47... Rb5 {[%clk 0:00:51.9]} 48. Rh4
{[%clk 0:00:14]} 48... Rg5 {[%clk 0:00:49.6]} 49. Nd4 {[%clk 0:00:10.1]} 49...
Kb6 {[%clk 0:00:48]} 50. Ne6 {[%clk 0:00:10.8]} 50... Rf5 {[%clk 0:00:46.4]} 51.
Rh1 {[%clk 0:00:10.4]} 51... f3 {[%clk 0:00:45.4]} 52. Rb1+ {[%clk 0:00:12.3]}
52... Ka5 {[%clk 0:00:46.6]} 53. Nd4 {[%clk 0:00:12.5]} 53... Rf4 {[%clk
0:00:43.7]} 54. Nc6+ {[%clk 0:00:12.7]} 54... Ka4 {[%clk 0:00:45]} 55. Rf1
{[%clk 0:00:12.9]} 55... f2 {[%clk 0:00:45.7]} 56. Nxa7 {[%clk 0:00:13.4]} 56...
Bc5 {[%clk 0:00:46.3]} 57. Nc6 {[%clk 0:00:14.1]} 57... Bb6 {[%clk 0:00:46.8]}
58. Ne5 {[%clk 0:00:14.8]} 58... Rd4+ {[%clk 0:00:44.5]} 59. Kc6 {[%clk
0:00:14.8]} 59... Rd6+ {[%clk 0:00:44.9]} 60. Kb7 {[%clk 0:00:14.9]} 60... Kb4
{[%clk 0:00:35]} 61. Ng4 {[%clk 0:00:14.1]} 61... Rd2 {[%clk 0:00:26.8]} 62.
Nxf2 {[%clk 0:00:13.1]} 62... Bxf2 {[%clk 0:00:27.9]} 63. Kxc7 {[%clk
0:00:13.9]} 63... Rxa2 {[%clk 0:00:29.5]} 64. Kd6 {[%clk 0:00:15.8]} 64... Bd4
{[%clk 0:00:29.1]} 65. Kd5 {[%clk 0:00:16.9]} 65... Rd2 {[%clk 0:00:28.2]} 66.
Ke4 {[%clk 0:00:15.9]} 66... Kc4 {[%clk 0:00:28.7]} 67. Rf4 {[%clk 0:00:11]}
67... Rd1 {[%clk 0:00:28.1]} 68. Rf8 {[%clk 0:00:08.1]} 68... Re1+ {[%clk
0:00:28.9]} 69. Kf5 {[%clk 0:00:09]} 69... Rf1+ {[%clk 0:00:30]} 70. Ke6 {[%clk
0:00:10.9]} 70... Rxf8 {[%clk 0:00:30]} 0-1

[Event "*** Titled Tuesday 3|2 Blitz"]
[Site "Chess.com"]
[Date "2016.10.04"]
[Round "9"]
[White "FearNoEvil12"]
[Black "Quiet_Desperation"]
[Result "0-1"]
[WhiteElo "1988"]
[BlackElo "2212"]
[TimeControl "180+2"]
[EndTime "18:58:56 PDT"]
[Termination "Quiet_Desperation won by resignation"]

1. e4 {[%clk 0:03:01.9]} 1... Nc6 {[%clk 0:03:00.8]} 2. d4 {[%clk 0:03:01.7]}
2... d5 {[%clk 0:03:02]} 3. e5 {[%clk 0:03:00]} 3... f6 {[%clk 0:03:03.3]} 4.
exf6 {[%clk 0:02:58.2]} 4... Nxf6 {[%clk 0:03:04]} 5. Nf3 {[%clk 0:02:59.8]}
5... Bg4 {[%clk 0:03:04.2]} 6. c3 {[%clk 0:02:49.2]} 6... g6 {[%clk 0:03:03]} 7.
Be2 {[%clk 0:02:50.5]} 7... Bg7 {[%clk 0:03:04.3]} 8. O-O {[%clk 0:02:50.8]}
8... O-O {[%clk 0:03:05.4]} 9. Nbd2 {[%clk 0:02:50.8]} 9... Ne4 {[%clk
0:03:04.4]} 10. Nxe4 {[%clk 0:02:50.4]} 10... dxe4 {[%clk 0:03:05.2]} 11. Nd2
{[%clk 0:02:51.9]} 11... Bf5 {[%clk 0:03:04.4]} 12. Bg4 {[%clk 0:02:49.9]} 12...
Qd7 {[%clk 0:03:02.8]} 13. Bxf5 {[%clk 0:02:50]} 13... gxf5 {[%clk 0:03:04]} 14.
Qe2 {[%clk 0:02:50.9]} 14... e5 {[%clk 0:03:04.5]} 15. dxe5 {[%clk 0:02:50.1]}
15... Nxe5 {[%clk 0:03:05.3]} 16. Nb3 {[%clk 0:02:49.9]} 16... Rae8 {[%clk
0:03:05]} 17. Be3 {[%clk 0:02:48.5]} 17... Kh8 {[%clk 0:03:04.3]} 18. Rad1
{[%clk 0:02:24.9]} 18... Qf7 {[%clk 0:03:02.2]} 19. Bd4 {[%clk 0:02:22.9]} 19...
b6 {[%clk 0:03:00.2]} 20. g3 {[%clk 0:02:22.7]} 20... Nf3+ {[%clk 0:02:57]} 21.
Kg2 {[%clk 0:02:22.3]} 21... Qh5 {[%clk 0:02:56]} 22. h3 {[%clk 0:02:20.3]}
22... Nh4+ {[%clk 0:02:56]} 0-1

[Event "*** Titled Tuesday 3|2 Blitz"]
[Site "Chess.com"]
[Date "2016.10.04"]
[Round "9"]
[White "Newlight1"]
[Black "jlandaw"]
[Result "1/2-1/2"]
[WhiteElo "2529"]
[BlackElo "2340"]
[TimeControl "180+2"]
[EndTime "19:03:19 PDT"]
[Termination "Game drawn by agreement"]

1. e4 {[%clk 0:03:01.1]} 1... e5 {[%clk 0:03:00.9]} 2. Nf3 {[%clk 0:03:01.1]}
2... Nc6 {[%clk 0:03:02]} 3. d4 {[%clk 0:03:02.2]} 3... exd4 {[%clk 0:03:03]} 4.
Bc4 {[%clk 0:03:03.9]} 4... Nf6 {[%clk 0:03:03.9]} 5. O-O {[%clk 0:03:05.5]}
5... d6 {[%clk 0:02:42]} 6. Nxd4 {[%clk 0:03:02.3]} 6... Be7 {[%clk 0:02:41.4]}
7. Nxc6 {[%clk 0:03:01.5]} 7... bxc6 {[%clk 0:02:42]} 8. Nc3 {[%clk 0:03:03.4]}
8... O-O {[%clk 0:02:42.5]} 9. Bf4 {[%clk 0:03:04.3]} 9... Bg4 {[%clk
0:02:34.2]} 10. f3 {[%clk 0:03:00.5]} 10... Be6 {[%clk 0:02:26.9]} 11. Qd3
{[%clk 0:02:58.8]} 11... Qb8 {[%clk 0:02:17.7]} 12. Bb3 {[%clk 0:02:56.3]} 12...
Nd7 {[%clk 0:02:17.7]} 13. Be3 {[%clk 0:02:28.5]} 13... Bf6 {[%clk 0:01:50.5]}
14. Rad1 {[%clk 0:02:28.4]} 14... Re8 {[%clk 0:01:48.6]} 15. Bxe6 {[%clk
0:02:27.6]} 15... fxe6 {[%clk 0:01:43.8]} 16. b3 {[%clk 0:02:28]} 16... Qb4
{[%clk 0:01:39.6]} 17. Ne2 {[%clk 0:02:26.2]} 17... Qa3 {[%clk 0:01:31.8]} 18.
f4 {[%clk 0:02:23.6]} 18... d5 {[%clk 0:01:11.3]} 19. e5 {[%clk 0:02:20.7]}
19... Be7 {[%clk 0:01:10.8]} 20. Nd4 {[%clk 0:02:22.1]} 20... Bc5 {[%clk
0:00:46.6]} 21. Nxc6 {[%clk 0:02:17.9]} 21... Qxa2 {[%clk 0:00:41.9]} 22. Bxc5
{[%clk 0:02:11.2]} 22... Nxc5 {[%clk 0:00:43.8]} 23. Qe3 {[%clk 0:02:13.1]}
23... Ne4 {[%clk 0:00:40.1]} 24. c4 {[%clk 0:02:14.3]} 24... Qa6 {[%clk
0:00:35.5]} 25. cxd5 {[%clk 0:02:11.9]} 25... exd5 {[%clk 0:00:37.4]} 26. Rxd5
{[%clk 0:02:05.1]} 26... Qxc6 {[%clk 0:00:37.8]} 27. Qxe4 {[%clk 0:01:55.2]}
27... Qb6+ {[%clk 0:00:39.1]} 28. Kh1 {[%clk 0:01:54.5]} 28... Qxb3 {[%clk
0:00:40.3]} 29. Rb1 {[%clk 0:01:51]} 29... Qc3 {[%clk 0:00:37]} 30. Rd7 {[%clk
0:01:51.9]} 30... a5 {[%clk 0:00:33.1]} 31. Rbd1 {[%clk 0:01:45.8]} 31... a4
{[%clk 0:00:28.7]} 32. Qf5 {[%clk 0:01:46.3]} 32... Qb3 {[%clk 0:00:24.4]} 33.
Qg5 {[%clk 0:01:41.2]} 33... g6 {[%clk 0:00:14.1]} 34. Qf6 {[%clk 0:01:39.5]}
1/2-1/2

[Event "*** Titled Tuesday 3|2 Blitz"]
[Site "Chess.com"]
[Date "2016.10.04"]
[Round "9"]
[White "michaelk123"]
[Black "GianmarcoVaR"]
[Result "1-0"]
[WhiteElo "2253"]
[BlackElo "2378"]
[TimeControl "180+2"]
[EndTime "19:04:05 PDT"]
[Termination "michaelk123 won by resignation"]

1. e4 {[%clk 0:03:00.8]} 1... c5 {[%clk 0:02:40]} 2. Nf3 {[%clk 0:03:00.6]} 2...
d6 {[%clk 0:02:41]} 3. d4 {[%clk 0:03:01.2]} 3... cxd4 {[%clk 0:02:42.9]} 4.
Qxd4 {[%clk 0:03:02.4]} 4... Nc6 {[%clk 0:02:37.2]} 5. Bb5 {[%clk 0:03:01.7]}
5... Bd7 {[%clk 0:02:38.5]} 6. Qd3 {[%clk 0:03:02]} 6... Nf6 {[%clk 0:02:38.7]}
7. c4 {[%clk 0:02:52]} 7... g6 {[%clk 0:02:37.2]} 8. h3 {[%clk 0:02:46]} 8...
Bg7 {[%clk 0:02:36.9]} 9. Nc3 {[%clk 0:02:46.6]} 9... O-O {[%clk 0:02:28.6]} 10.
O-O {[%clk 0:02:46.4]} 10... Rc8 {[%clk 0:02:13.4]} 11. Be3 {[%clk 0:02:46.3]}
11... a6 {[%clk 0:02:09.9]} 12. Bxc6 {[%clk 0:02:47.1]} 12... Bxc6 {[%clk
0:02:07.8]} 13. Rac1 {[%clk 0:02:25.8]} 13... b5 {[%clk 0:01:56.3]} 14. cxb5
{[%clk 0:02:21.9]} 14... axb5 {[%clk 0:01:58.2]} 15. Nd4 {[%clk 0:02:22.4]}
15... b4 {[%clk 0:01:57.6]} 16. Nd5 {[%clk 0:01:59]} 16... Bxd5 {[%clk
0:01:37.9]} 17. exd5 {[%clk 0:01:59.6]} 17... Rxc1 {[%clk 0:01:38.6]} 18. Rxc1
{[%clk 0:01:59.8]} 18... Qa8 {[%clk 0:01:34.8]} 19. Nc6 {[%clk 0:01:59.7]} 19...
Qb7 {[%clk 0:01:25.1]} 20. Rc4 {[%clk 0:01:57]} 20... Qb5 {[%clk 0:01:11.6]} 21.
Nxe7+ {[%clk 0:01:47.4]} 21... Kh8 {[%clk 0:01:11.5]} 22. Bd4 {[%clk 0:01:40]}
22... Re8 {[%clk 0:01:02.8]} 23. b3 {[%clk 0:00:34.8]} 23... Qa6 {[%clk
0:00:36.1]} 24. Qf3 {[%clk 0:00:28.8]} 24... Ng8 {[%clk 0:00:06.4]} 25. Qxf7
{[%clk 0:00:14.2]} 25... Bxd4 {[%clk 0:00:04.5]} 26. Qxe8 {[%clk 0:00:12.3]} 1-0

[Event "*** Titled Tuesday 3|2 Blitz"]
[Site "Chess.com"]
[Date "2016.10.04"]
[Round "9"]
[White "brightthunder"]
[Black "MFBerna"]
[Result "1-0"]
[WhiteElo "2318"]
[BlackElo "2179"]
[TimeControl "180+2"]
[EndTime "19:05:11 PDT"]
[Termination "brightthunder won on time"]

1. e4 {[%clk 0:03:01.9]} 1... e5 {[%clk 0:03:00.6]} 2. Nf3 {[%clk 0:03:01.5]}
2... Nc6 {[%clk 0:03:02]} 3. Bb5 {[%clk 0:03:02]} 3... a6 {[%clk 0:03:02.7]} 4.
Ba4 {[%clk 0:03:03]} 4... Nf6 {[%clk 0:03:03.7]} 5. O-O {[%clk 0:03:03.1]} 5...
Be7 {[%clk 0:03:04.6]} 6. Re1 {[%clk 0:03:04.1]} 6... b5 {[%clk 0:03:06]} 7. Bb3
{[%clk 0:03:05.3]} 7... O-O {[%clk 0:03:07.5]} 8. h3 {[%clk 0:03:05]} 8... d6
{[%clk 0:03:07.8]} 9. c3 {[%clk 0:03:06.1]} 9... Na5 {[%clk 0:03:08.8]} 10. Bc2
{[%clk 0:03:05.8]} 10... c5 {[%clk 0:03:10]} 11. d4 {[%clk 0:03:07.3]} 11... Qc7
{[%clk 0:03:11]} 12. d5 {[%clk 0:02:49.3]} 12... c4 {[%clk 0:03:11.5]} 13. b4
{[%clk 0:02:48.5]} 13... cxb3 {[%clk 0:03:07.3]} 14. axb3 {[%clk 0:02:50.4]}
14... Nb7 {[%clk 0:03:01.6]} 15. b4 {[%clk 0:02:50.7]} 15... Bd7 {[%clk
0:03:01.6]} 16. Bd3 {[%clk 0:02:26.1]} 16... Rfb8 {[%clk 0:02:58.6]} 17. Na3
{[%clk 0:02:22.9]} 17... Nd8 {[%clk 0:02:58.6]} 18. Bd2 {[%clk 0:02:23.4]} 18...
a5 {[%clk 0:02:58.8]} 19. Qe2 {[%clk 0:02:21.3]} 19... Qb6 {[%clk 0:02:51.1]}
20. Reb1 {[%clk 0:02:15.4]} 20... axb4 {[%clk 0:02:47.7]} 21. cxb4 {[%clk
0:02:17.3]} 21... Ne8 {[%clk 0:02:44.1]} 22. Be3 {[%clk 0:02:06.2]} 22... Qb7
{[%clk 0:02:44.7]} 23. Nd2 {[%clk 0:02:05.9]} 23... Nc7 {[%clk 0:02:44.3]} 24.
Nb3 {[%clk 0:02:05.7]} 24... Qc8 {[%clk 0:02:34.6]} 25. Rc1 {[%clk 0:02:03.3]}
25... Qb7 {[%clk 0:01:46.9]} 26. Na5 {[%clk 0:01:33.5]} 26... Qc8 {[%clk
0:01:47.9]} 27. Rab1 {[%clk 0:01:22.2]} 27... Nb7 {[%clk 0:01:34.8]} 28. Bb6
{[%clk 0:01:13]} 28... Bd8 {[%clk 0:01:29.4]} 29. Nxb5 {[%clk 0:01:08.3]} 29...
Bxb5 {[%clk 0:01:25.8]} 30. Bxb5 {[%clk 0:01:07.5]} 30... f5 {[%clk 0:00:59.4]}
31. Bd3 {[%clk 0:00:57.3]} 31... Nxa5 {[%clk 0:00:26.4]} 32. bxa5 {[%clk
0:00:55.5]} 32... f4 {[%clk 0:00:08.3]} 33. Rc6 {[%clk 0:00:52.5]} 33... Qd7
{[%clk 0:00:08.1]} 34. Rbc1 {[%clk 0:00:51.2]} 34... Ne8 {[%clk 0:00:07.4]} 35.
Bb5 {[%clk 0:00:47.5]} 35... Qe7 {[%clk 0:00:04.2]} 36. Bxd8 {[%clk 0:00:24.2]}
36... Qxd8 {[%clk 0:00:06.1]} 37. a6 {[%clk 0:00:24.9]} 37... Nf6 {[%clk
0:00:05.2]} 38. Bd3 {[%clk 0:00:24.9]} 38... Ra7 {[%clk 0:00:04.7]} 39. Qc2
{[%clk 0:00:22.3]} 1-0